bitfinex-derivatives/quotes_SOLF0:USTF0_20260117
["timestamp","ask_amount","ask_price","bid_price","bid_amount"]
[1768637556750,2.6913099,143.88,143.82,3.04453357]
[1768637562346,2.6913099,143.88,143.83,3.05860083]
[1768637563955,1.73301783,143.89,143.83,9.31800083]
[1768637564459,4.42432773,143.89,143.83,9.31800083]
[1768637565158,4.42432773,143.89,143.84,3.05860083]
[1768637565358,1.73301783,143.89,143.84,3.05860083]
[1768637566060,1.73301783,143.89,143.84,9.31760083]
[1768637571267,1.73301783,143.89,143.84,3.05860083]
[1768637576073,4.42354482,143.9,143.84,3.05860083]
[1768637576775,2.69052699,143.89,143.82,3.27068705]
[1768637579672,4.42354482,143.89,143.82,3.27068705]
[1768637584879,4.42354482,143.89,143.82,9.53048705]
[1768637585078,4.42354482,143.89,143.83,3.27068705]
[1768637586181,2.69052699,143.89,143.83,3.27068705]
[1768637590679,2.69052699,143.89,143.82,6.2598]
[1768637591282,2.69052699,143.89,143.82,9.53048705]
[1768637593489,2.69052699,143.89,143.83,3.27068705]
[1768637611100,8.94752699,143.89,143.83,3.27068705]
[1768637611906,8.94854286,143.88,143.81,279.11665539]
[1768637612106,2.69114286,143.87,143.81,266.11753334]
[1768637612407,8.94904286,143.87,143.81,262.88]
[1768637612606,2.69114286,143.86,143.81,262.88]
[1768637612907,2.69114286,143.86,143.8,1.73261414]
[1768637613107,2.69114286,143.86,143.8,4.97014748]
[1768637613502,2.69114286,143.86,143.8,1.73261414]
[1768637616709,2.69114286,143.86,143.79,24.23046953]
[1768637618215,2.69114286,143.86,143.8,3.23753334]
[1768637621713,2.69114286,143.86,143.8,9.49823334]
[1768637622912,2.69114286,143.86,143.81,3.23753334]
[1768637637223,6.2579,143.87,143.81,3.23753334]
[1768637638222,6.2579,143.87,143.81,4.97014748]
[1768637639324,6.2579,143.87,143.82,3.14986505]
[1768637641429,8.94889186,143.87,143.82,3.14986505]
[1768637641927,2.69099186,143.86,143.81,1.73261414]
[1768637642330,2.69099186,143.86,143.8,3.14986505]
[1768637642922,8.94929186,143.86,143.79,3.14986505]
[1768637644829,8.94929186,143.86,143.8,3.14986505]
[1768637647134,6.2583,143.86,143.81,3.14986505]
[1768637650037,8.94869186,143.88,143.81,3.14986505]
[1768637651742,6.2579,143.87,143.81,3.14986505]
[1768637651940,2.69099186,143.86,143.8,7.99331414]
[1768637652142,2.69099186,143.86,143.8,11.14317919]
[1768637652735,2.69099186,143.86,143.8,3.14986505]
[1768637652935,8.94929186,143.86,143.8,3.14986505]
[1768637655147,8.94979186,143.85,143.8,3.14986505]
[1768637657646,6.2588,143.85,143.8,3.14986505]
[1768637661445,8.94979186,143.85,143.8,3.14986505]
[1768637667453,8.94979186,143.85,143.79,12.99912205]
[1768637671556,8.94979186,143.85,143.78,490.18161037]
[1768637672553,2.69416887,143.84,143.78,490.18161037]
[1768637676061,2.69416887,143.84,143.79,2.98867455]
[1768637690581,6.2588,143.85,143.79,2.98867455]
[1768637693279,6.2588,143.85,143.79,15.9877966]
[1768637700189,6.2588,143.85,143.8,3.09335747]
[1768637700693,2.69416887,143.86,143.81,3.09335747]
[1768637700987,2.69416887,143.86,143.82,1.73358945]
[1768637701790,6.2581,143.87,143.82,4.82694692]
[1768637706892,2.68947996,143.88,143.82,4.82694692]
[1768637717300,2.68947996,143.88,143.82,3.09335747]
[1768637722906,130.35440886,143.89,143.82,3.09335747]
[1768637724106,133.04701228,143.89,143.82,3.09335747]
[1768637736013,133.04701228,143.89,143.82,9.35325747]
[1768637738416,2.68930048,143.88,143.82,9.35325747]
[1768637739210,2.68930048,143.88,143.83,2.9993396]
[1768637739420,124.09720886,143.89,143.83,2.9993396]
[1768637740004,4.42211755,143.9,143.83,2.9993396]
[1768637740207,2.68930048,143.89,143.83,2.9993396]
[1768637745714,4.42211755,143.89,143.83,2.9993396]
[1768637750413,4.42211755,143.89,143.81,14.73193912]
[1768637750414,2.68930048,143.89,143.84,2.9993396]
[1768637750624,1.73281707,143.9,143.84,2.9993396]
[1768637751222,1.73281707,143.9,143.84,9.2584396]
[1768637753125,1.73281707,143.9,143.85,3.17400201]
[1768637753626,8.67821755,143.91,143.85,3.17400201]
[1768637753819,1.73281707,143.9,143.85,3.17400201]
[1768637756720,8.67821755,143.91,143.85,3.17400201]
[1768637757025,10.41103462,143.91,143.85,3.17400201]
[1768637765231,4.15493462,143.91,143.85,3.17400201]
[1768637769235,1.73281707,143.91,143.85,3.17400201]
[1768637769527,1.73281707,143.91,143.86,3.17400201]
[1768637769930,6.2557,143.92,143.86,3.17400201]
[1768637770332,4.15487739,143.93,143.86,9.43220201]
[1768637770544,4.15487739,143.93,143.87,3.17400201]
[1768637771836,1.73281707,143.93,143.87,3.17400201]
[1768637772438,4.15487739,143.93,143.87,3.17400201]
[1768637773827,10.41017739,143.93,143.87,3.17400201]
[1768637779144,2.42206032,143.92,143.87,3.17400201]
[1768637779336,4.15406957,143.92,143.86,6.2582]
[1768637779742,4.15406957,143.92,143.86,9.43220201]
[1768637784135,4.15244673,143.94,143.87,3.03314021]
[1768637784337,4.15244673,143.94,143.88,3.03314021]
[1768637784635,2.42043748,143.93,143.88,3.03314021]
[1768637785145,4.15244673,143.93,143.88,3.03314021]
[1768637795964,2.42043748,143.93,143.88,3.03314021]
[1768637807258,2.42043748,143.93,143.88,4.76514946]
[1768637807769,6.2549,143.94,143.89,3.24326788]
[1768637808370,8.67476654,143.94,143.89,3.24326788]
[1768637812368,6.2549,143.94,143.89,3.24326788]
[1768637813270,8.67589596,143.94,143.89,3.24326788]
[1768637821386,6.2553,143.93,143.89,3.24326788]
[1768637822688,1.73200925,143.96,143.89,3.24326788]
[1768637822689,6.2544,143.95,143.89,3.24326788]
[1768637822989,2.42099596,143.96,143.91,2.97906628]
[1768637823689,8.67499596,143.96,143.91,2.97906628]
[1768637824490,10.40700521,143.96,143.89,2.97906628]
[1768637827791,8.67499596,143.96,143.89,2.97906628]
[1768637827982,8.67499596,143.96,143.91,2.97906628]
[1768637828891,2.42099596,143.94,143.87,15.97818833]
[1768637829789,8.67599596,143.94,143.87,15.97818833]
[1768637831590,2.42099596,143.93,143.87,15.97818833]
[1768637832785,2.42099596,143.92,143.87,2.97906628]
[1768637832988,2.42099596,143.92,143.86,171.93063872]
[1768637833389,2.42099596,143.92,143.86,174.909705]
[1768637834394,2.42099596,143.92,143.87,2.97906628]
[1768637835688,8.67679596,143.92,143.87,2.97906628]
[1768637838891,10.40930521,143.91,143.85,12.99912205]
[1768637839090,2.42099596,143.9,143.84,15.97818833]
[1768637839395,4.15371453,143.9,143.84,2.97906628]
[1768637839598,4.15371453,143.9,143.83,12.99912205]
[1768637839599,2.42099596,143.89,143.83,12.99912205]
[1768637839897,2.42099596,143.89,143.83,2.97906628]
[1768637843799,2.42158574,143.91,143.84,4.89040698]
[1768637844200,2.42158574,143.91,143.85,3.15768841]
[1768637846901,2.42158574,143.93,143.87,3.15768841]
[1768637848901,8.67688574,143.93,143.87,3.15768841]
[1768637849900,10.40900431,143.95,143.87,3.15768841]
[1768637852294,6.2548,143.94,143.87,3.15768841]
[1768637853096,2.42150305,143.93,143.87,3.15768841]
[1768637854409,2.42150305,143.92,143.85,3.01249866]
[1768637855800,2.42150305,143.91,143.85,3.01249866]
[1768637863920,2.42150305,143.91,143.85,9.27109866]
[1768637872829,2.42150305,143.91,143.86,3.00076076]
[1768637873833,6.2558,143.92,143.86,3.00076076]
[1768637874832,8.67802878,143.92,143.86,3.00076076]
[1768637877827,2.42222878,143.92,143.86,3.00076076]
[1768637878030,2.42222878,143.92,143.84,12.99912205]
[1768637878031,2.42222878,143.91,143.83,19.25832205]
[1768637878230,2.42222878,143.91,143.83,22.25908281]
[1768637879732,2.42222878,143.9,143.83,22.25908281]
[1768637879935,8.67882878,143.9,143.83,22.25908281]
[1768637881835,8.67882878,143.9,143.83,9.25996076]
[1768637883142,8.67882878,143.9,143.84,3.00076076]
[1768637884934,2.42222878,143.9,143.84,4.73347933]
[1768637885141,2.42222878,143.9,143.85,3.00076076]
[1768637886243,8.67872878,143.9,143.85,3.00076076]
[1768637886542,2.42222878,143.9,143.85,3.00076076]
[1768637900452,2.42222878,143.92,143.85,3.00076076]
[1768637902258,8.67792878,143.92,143.85,3.00076076]
[1768637903655,2.42087558,143.91,143.85,3.00076076]
[1768637912063,8.67697558,143.91,143.85,3.00076076]
[1768637914749,2.42138615,143.89,143.83,3.13267689]
[1768637917164,2.42138615,143.88,143.83,3.13267689]
[1768637917864,8.67878615,143.88,143.81,22.39209894]
[1768637918169,8.67878615,143.88,143.81,9.39297689]
[1768637918765,8.67878615,143.88,143.82,3.13267689]
[1768637925780,8.67878615,143.88,143.82,4.86496566]
[1768637927580,2.42138615,143.88,143.83,3.13267689]
[1768637929976,10.41047492,143.9,143.83,3.13267689]
[1768637930174,8.67818615,143.9,143.83,3.13267689]
[1768637931786,8.67818615,143.9,143.84,3.22575162]
[1768637931978,8.67818615,143.9,143.84,4.95804039]
[1768637940384,8.67818615,143.9,143.84,1.73228877]
[1768637940686,8.67818615,143.9,143.85,3.22575162]
[1768637942576,2.42138615,143.9,143.85,3.22575162]
[1768637951591,6.2561,143.91,143.85,3.22575162]
[1768637956496,8.67779874,143.91,143.85,3.22575162]
[1768637960898,97.2699,143.98,143.86,3.22575162]
[1768637960899,8.67719874,143.93,143.86,3.22575162]
[1768637962203,2.42074816,143.91,143.84,16.24840006]
[1768637962501,2.42074816,143.91,143.84,3.24927801]
[1768637962699,4.15303693,143.91,143.84,3.24927801]
[1768637963299,1.73262961,143.9,143.84,3.24927801]
[1768637963803,1.73262961,143.9,143.84,9.50807801]
[1768637965507,4.15337777,143.9,143.84,9.50807801]
[1768637971008,2.42074816,143.9,143.85,3.24927801]
[1768637971206,4.15337777,143.9,143.85,3.24927801]
[1768637971611,2.42074816,143.9,143.85,3.24927801]
[1768637989725,2.42151405,143.93,143.86,3.04594696]
[1768637989925,2.42151405,143.95,143.88,3.04594696]
[1768637990827,2.42151405,143.95,143.88,9.30324696]
[1768637993238,2.42151405,143.95,143.89,3.0771489]
[1768638000545,114.80663834,143.96,143.89,3.0771489]
[1768638001343,117.22587772,143.96,143.89,3.0771489]
[1768638007348,2.41923938,143.95,143.89,3.0771489]
[1768638010949,2.41923938,143.95,143.9,3.0771489]
[1768638013846,114.80663834,143.96,143.9,3.0771489]
[1768638014446,4.15186899,143.96,143.91,3.0771489]
[1768638019443,2.41923938,143.98,143.92,3.0771489]
[1768638020144,2.41923938,143.97,143.92,3.0771489]
[1768638035865,1.73076863,143.98,143.92,3.0771489]
[1768638036363,2.41930621,143.99,143.93,2.9895621]
[1768638036560,2.41930621,144.01,143.93,2.9895621]
[1768638036867,2.41930621,144.0,143.93,2.9895621]
[1768638037067,4.15007484,143.99,143.93,2.9895621]
[1768638038367,4.15007484,143.99,143.89,97.325]
[1768638038368,2.41930621,143.98,143.91,2.9895621]
[1768638038667,1.73076863,143.97,143.91,2.9895621]
[1768638040270,2.41930621,143.96,143.91,2.9895621]
[1768638040464,4.15007484,143.95,143.88,2.9895621]
[1768638041769,4.15007484,143.95,143.89,9.2463621]
[1768638044374,1.73076863,143.95,143.9,2.9895621]
[1768638046667,10.40337484,143.98,143.91,2.9895621]
[1768638048277,2.41930621,143.98,143.91,2.9895621]
[1768638048573,2.41930621,143.98,143.92,2.9895621]
[1768638060586,2.41930621,143.98,143.92,9.2451621]
[1768638060884,2.41930621,143.98,143.93,3.03603155]
[1768638061691,2.41920367,143.97,143.91,3.03603155]
[1768638074696,6.2531,143.98,143.92,3.03603155]
[1768638074897,2.41920367,143.99,143.92,3.03603155]
[1768638075400,2.41920367,143.99,143.93,3.03603155]
[1768638079695,8.67180367,143.99,143.93,3.03603155]
[1768638083708,6.2531,143.98,143.93,3.03603155]
[1768638083906,2.41893564,143.97,143.91,3.03886698]
[1768638090613,2.41893564,143.97,143.92,3.03886698]
[1768638090806,2.41893564,143.99,143.93,3.03886698]
[1768638096017,4.15370568,144.01,143.94,3.09625139]
[1768638096412,2.42321646,144.0,143.94,3.09625139]
[1768638099008,10.40550568,144.01,143.94,3.09625139]
[1768638099818,8.67501646,144.01,143.94,3.09625139]
[1768638106619,8.67501646,144.01,143.95,3.09625139]
[1768638106821,200.38486688,144.05,143.95,3.09625139]
[1768638106822,8.67431646,144.03,143.95,3.09625139]
[1768638107923,8.67431646,144.03,143.96,3.09625139]
[1768638108326,8.67431646,144.03,143.97,3.09625139]
[1768638110227,2.42321646,144.03,143.97,3.09625139]
[1768638111327,2.42321646,144.03,143.97,9.34965139]
[1768638112331,2.42321646,144.03,143.98,3.17785248]
[1768638124634,2.42000722,144.05,143.99,3.17785248]
[1768638125540,2.42000722,144.05,143.99,9.43035248]
[1768638132049,2.42000722,144.05,144.0,3.17785248]
[1768638144154,1.73048922,144.06,144.0,3.17785248]
[1768638145156,4.14984358,144.06,144.0,3.17785248]
[1768638147761,10.39944358,144.06,144.0,3.17785248]
[1768638148060,2.41935436,144.05,143.98,3.01327575]
[1768638149158,8.66935436,144.05,143.99,3.01327575]
[1768638149455,10.39838797,144.05,143.99,3.01327575]
[1768638156675,8.66935436,144.05,143.99,3.01327575]
[1768638168876,2.4166723,144.04,143.99,3.01327575]
[1768638169077,2.4166723,144.04,143.98,19.25202205]
[1768638170177,2.4166723,144.04,143.98,22.46699127]
[1768638175175,2.4166723,144.04,143.99,6.2528]
[1768638176980,2.4166723,144.04,143.98,3.21496922]
[1768638182284,2.41681399,144.03,143.97,12.99912205]
[1768638182476,2.41681399,144.03,143.96,3.24065301]
[1768638183095,2.41681399,144.01,143.96,3.24065301]
[1768638183480,8.66921399,144.01,143.96,3.24065301]
[1768638183979,2.41681399,144.01,143.96,3.24065301]
[1768638186185,2.41681399,144.01,143.94,3.24065301]
[1768638186487,2.41681399,143.99,143.94,3.24065301]
[1768638186685,2.41681399,143.99,143.92,3.24065301]
[1768638187190,2.41681399,143.98,143.92,3.24065301]
[1768638188092,4.1458476,143.98,143.92,3.24065301]
[1768638190189,2.41681399,143.98,143.92,3.24065301]
[1768638195186,2.41681399,143.98,143.93,3.24065301]
[1768638195595,2.41681399,144.0,143.93,3.24065301]
[1768638197196,7.98163361,144.01,143.94,3.24065301]
[1768638197396,10.3984476,144.01,143.94,3.24065301]
[1768638198799,10.3984476,144.01,143.95,3.24065301]
[1768638198800,4.1458476,144.01,143.95,3.24065301]
[1768638199994,2.41681399,144.01,143.95,3.24065301]
[1768638213926,2.41681399,144.01,143.96,3.11090951]
[1768638214119,2.41696275,144.03,143.96,3.11090951]
[1768638217928,8.66846275,144.03,143.96,3.11090951]
[1768638224521,2.41696275,144.03,143.97,3.11090951]
[1768638245652,8.67118319,144.05,143.98,3.16513406]
[1768638245848,2.42038319,144.1,143.99,3.16513406]
[1768638246049,2.42038319,144.08,144.0,1.72964069]
[1768638246354,2.42038319,144.08,144.01,3.16513406]
[1768638246739,2.42038319,144.07,144.01,3.16513406]
[1768638253758,8.67018319,144.07,144.01,3.16513406]
[1768638260164,10.39982388,144.07,144.01,3.16513406]
[1768638271270,10.39882001,144.07,144.01,3.16513406]
[1768638271564,2.41494437,144.06,143.99,7.98173682]
[1768638271758,2.41494437,144.04,143.99,3.28396306]
[1768638272158,2.41494437,144.04,143.97,9.53776306]
[1768638272563,2.41494437,144.04,143.98,3.28396306]
[1768638281079,2.41494437,144.04,143.98,9.53746306]
[1768638292398,2.41494437,144.04,143.99,3.05780791]
[1768638292694,10.39479648,144.05,143.99,3.05780791]
[1768638299901,7.97933682,144.05,143.99,3.05780791]
[1768638300299,6.2507,144.05,143.99,3.05780791]
[1768638302198,8.66615966,144.05,143.99,3.05780791]
[1768638302403,2.41545966,144.05,143.99,3.05780791]
[1768638303902,8.66635966,144.05,143.99,3.05780791]
[1768638307005,2.41545966,144.04,143.99,3.05780791]
[1768638311612,8.66675966,144.04,143.99,3.05780791]
[1768638311914,10.39539648,144.04,143.99,3.05780791]
[1768638316016,8.66675966,144.04,143.99,3.05780791]
[1768638352347,2.41545966,144.04,143.99,3.05780791]
[1768638360144,6.2503,144.06,143.99,9.31080791]
[1768638360145,8.66730089,144.06,143.99,9.31080791]
[1768638360351,128.55331308,144.08,144.0,4.78489508]
[1768638360540,2.41700089,144.08,144.01,3.05573679]
[1768638360742,2.41700089,144.08,144.02,3.05573679]
[1768638368858,1.72915829,144.09,144.03,3.05573679]
[1768638372962,2.41700089,144.09,144.03,3.05573679]
[1768638390672,2.41700089,144.09,144.03,9.30713679]
[1768638396179,2.41700089,144.09,144.04,2.99584946]
[1768638415894,8.66590089,144.09,144.04,2.99584946]
[1768638416894,2.41700089,144.09,144.04,2.99584946]
[1768638422402,8.66620089,144.09,144.04,2.99584946]
[1768638422589,4.14294933,144.11,144.04,2.99584946]
[1768638423891,10.39124933,144.11,144.04,2.99584946]
[1768638429199,2.41498708,144.1,144.04,2.99584946]
[1768638447120,8.66348708,144.1,144.04,2.99584946]
[1768638449221,8.66408258,144.09,144.04,2.99584946]
[1768638456015,2.41508258,144.09,144.04,2.99584946]
[1768638456828,2.41528194,144.11,144.05,3.17083361]
[1768638467935,2.41528194,144.11,144.05,9.42133361]
[1768638477140,8.66089235,144.13,144.07,1.72757299]
[1768638477443,8.66089235,144.13,144.07,3.19888843]
[1768638477840,2.41369235,144.13,144.07,3.19888843]
[1768638480941,8.66029235,144.15,144.08,3.19888843]
[1768638481744,8.66029235,144.15,144.08,9.44808843]
[1768638483147,6.247,144.14,144.08,3.19888843]
[1768638484649,2.41369235,144.15,144.08,3.19888843]
[1768638485247,8.65999235,144.15,144.08,3.19888843]
[1768638487153,2.41369235,144.14,144.08,3.19888843]
[1768638489851,2.41369235,144.14,144.09,3.19888843]
[1768638490051,4.14126534,144.16,144.09,3.19888843]
[1768638492258,4.14126534,144.16,144.1,3.19888843]
[1768638493053,1.72757299,144.18,144.11,3.19888843]
[1768638493249,4.14126534,144.18,144.11,3.19888843]
[1768638496055,1.72757299,144.18,144.11,3.19888843]
[1768638497461,8.65849235,144.19,144.11,3.19888843]
[1768638497662,10.38606534,144.19,144.11,3.19888843]
[1768638498266,2.41369235,144.19,144.12,3.19888843]
[1768638498469,4.14126534,144.19,144.12,3.19888843]
[1768638499770,2.41369235,144.18,144.12,3.19888843]
[1768638499964,1.72757299,144.17,144.12,3.19888843]
[1768638503471,4.13953394,144.17,144.12,3.19888843]
[1768638503677,4.13953394,144.17,144.1,3.11407235]
[1768638509376,10.38493394,144.17,144.1,3.11407235]
[1768638510078,10.38493394,144.17,144.11,3.11407235]
[1768638516281,8.65736095,144.17,144.11,3.11407235]
[1768638525297,2.41196095,144.17,144.11,3.11407235]
[1768638525595,8.65702606,144.19,144.11,3.11407235]
[1768638525799,2.41212606,144.19,144.13,3.22782154]
[1768638531697,2.41223714,144.21,144.14,9.23561942]
[1768638532504,2.41223714,144.21,144.15,2.98901942]
[1768638532696,7.96901512,144.22,144.15,2.98901942]
[1768638532697,2.41223714,144.24,144.15,2.98901942]
[1768638533002,2.41223714,144.22,144.16,1.72581512]
[1768638534294,2.41223714,144.22,144.15,9.23501942]
[1768638535302,2.41223714,144.22,144.16,2.98901942]
[1768638539003,2.41223714,144.22,144.16,9.23471942]
[1768638539904,2.41223714,144.22,144.17,2.98901942]
[1768638540404,2.41223714,144.24,144.17,2.98901942]
[1768638542600,2.41223714,144.24,144.18,2.98901942]
[1768638544809,8.65473714,144.24,144.18,2.98901942]
[1768638548613,2.41223714,144.24,144.18,2.98901942]
[1768638549215,2.41223714,144.24,144.19,2.98901942]
[1768638556020,10.37995226,144.26,144.19,2.98901942]
[1768638556718,2.41223714,144.26,144.2,2.98901942]
[1768638557920,2.41223714,144.26,144.2,9.23301942]
[1768638558519,2.41223714,144.26,144.21,2.98901942]
[1768638562225,1.72581512,144.31,144.22,3.20088682]
[1768638562425,2.40883522,144.3,144.22,3.20088682]
[1768638562926,8.64913522,144.29,144.22,9.44378682]
[1768638563422,2.40883522,144.29,144.23,3.20088682]
[1768638564914,2.40883522,144.29,144.23,9.44358682]
[1768638565113,2.40883522,144.29,144.24,3.20088682]
[1768638565420,10.37435034,144.31,144.24,3.20088682]
[1768638566326,2.40883522,144.3,144.24,3.20088682]
[1768638576033,8.64873522,144.3,144.24,3.20088682]
[1768638576637,8.64761984,144.29,144.22,3.11392126]
[1768638576932,2.40731984,144.28,144.22,3.11392126]
[1768638577137,2.40731984,144.27,144.22,3.11392126]
[1768638577835,6.2407,144.28,144.22,3.11392126]
[1768638578434,8.64801984,144.28,144.22,3.11392126]
[1768638579338,10.37156589,144.28,144.22,3.11392126]
[1768638581747,2.40731984,144.27,144.22,3.11392126]
[1768638593652,8.64861984,144.27,144.2,265.51276206]
[1768638593859,2.40851681,144.26,144.2,3.29276206]
[1768638601064,2.40851681,144.26,144.2,5.01630811]
[1768638601258,2.40851681,144.26,144.21,3.29276206]
[1768638602255,4.13206286,144.28,144.21,3.29276206]
[1768638602760,2.40851681,144.27,144.21,3.29276206]
[1768638606468,2.40851681,144.3,144.22,5.01630811]
[1768638606673,2.40851681,144.3,144.23,3.29276206]
[1768638607768,2.40851681,144.29,144.23,3.29276206]
[1768638614672,2.40851681,144.28,144.21,9.53636206]
[1768638615270,2.40851681,144.28,144.22,3.29276206]
[1768638616871,2.40851681,144.27,144.2,5.01630811]
[1768638617269,2.40851681,144.27,144.2,3.29276206]
[1768638617270,4.13206286,144.27,144.2,3.29276206]
[1768638617771,10.37316286,144.27,144.2,3.29276206]
[1768638621471,8.64961681,144.27,144.2,3.29276206]
[1768638623774,2.40730117,144.26,144.2,3.29276206]
[1768638626777,8.64890117,144.26,144.2,3.29276206]
[1768638631874,8.65000117,144.25,144.2,3.29276206]
[1768638637185,8.65000117,144.25,144.18,454.40143058]
[1768638638387,2.40780117,144.25,144.19,4.85411621]
[1768638639286,2.40780117,144.25,144.19,4.85430714]
[1768638641286,2.40780117,144.25,144.19,3.13057016]
[1768638656690,2.40780117,144.25,144.19,4.85430714]
[1768638660391,8.64980117,144.25,144.19,4.85430714]
[1768638662692,8.64980117,144.25,144.19,3.13057016]
[1768638671998,2.40780117,144.25,144.19,3.13057016]
[1768638679407,2.40780117,144.25,144.2,8.61496333]
[1768638689017,2.40780117,144.25,144.2,11.75831206]
[1768638691620,2.40780117,144.25,144.2,18.00231206]
[1768638691808,8.65119508,144.27,144.21,2.98484807]
[1768638692011,8.65119508,144.27,144.21,11.5998114]
[1768638693013,2.40979508,144.26,144.21,11.5998114]
[1768638693218,2.40979508,144.26,144.21,2.98484807]
[1768638694022,2.40979508,144.28,144.23,2.98484807]
[1768638694223,2.40979508,144.28,144.22,8.61496333]
[1768638695222,2.40979508,144.28,144.22,11.5998114]
[1768638695919,8.65049508,144.28,144.22,11.5998114]
[1768638697217,8.65049508,144.28,144.22,2.98484807]
[1768638697424,8.65049508,144.28,144.23,2.98484807]
[1768638700122,2.40979508,144.28,144.23,2.98484807]
[1768638711235,6.2402,144.29,144.23,2.98484807]
[1768638715339,8.64815161,144.29,144.23,2.98484807]
[1768638721533,6.2409,144.28,144.23,2.98484807]
[1768638721743,2.40795161,144.29,144.23,2.98484807]
[1768638721943,2.40795161,144.31,144.23,2.98484807]
[1768638722144,4.1311024,144.31,144.23,2.98484807]
[1768638723245,2.40795161,144.31,144.24,1.72315079]
[1768638723444,2.40795161,144.31,144.25,3.14660296]
[1768638723846,8.64735161,144.31,144.25,3.14660296]
[1768638725343,2.40795161,144.31,144.25,3.14660296]
[1768638725646,2.40795161,144.31,144.26,3.14660296]
[1768638726045,2.40795161,144.31,144.24,9.38870296]
[1768638729050,97.0334,144.35,144.23,3.14660296]
[1768638729051,4.1311024,144.3,144.23,3.14660296]
[1768638729245,2.40795161,144.29,144.23,3.14660296]
[1768638735057,8.64825161,144.29,144.23,3.14660296]
[1768638744875,8.64851858,144.28,144.22,8.61496333]
[1768638745176,2.40781858,144.27,144.21,11.75716551]
[1768638745774,2.40781858,144.27,144.2,8.61496333]
[1768638746072,2.40781858,144.25,144.19,11.75716551]
[1768638746274,2.40781858,144.25,144.19,8.61496333]
[1768638746479,2.40781858,144.24,144.19,8.61496333]
[1768638746775,2.40781858,144.24,144.18,8.61496333]
[1768638747074,2.40781858,144.23,144.17,8.61496333]
[1768638747281,2.40781858,144.21,144.16,11.75716551]
[1768638748170,2.40781858,144.21,144.16,3.14220218]
[1768638753383,2.41022998,144.23,144.16,3.14220218]
[1768638754282,2.41022998,144.22,144.16,3.14220218]
[1768638756990,6.2429,144.23,144.16,3.14220218]
[1768638757693,6.2429,144.23,144.17,1.72315079]
[1768638758289,6.2429,144.23,144.17,4.94740047]
[1768638760689,6.2429,144.23,144.17,3.22424968]
[1768638762190,8.65312998,144.23,144.17,3.22424968]
[1768638778898,4.13409317,144.22,144.16,6.2457]
[1768638779101,2.40963957,144.21,144.16,6.2457]
[1768638781007,2.40963957,144.21,144.15,3.03015357]
[1768638782200,2.40963957,144.19,144.13,3.03015357]
[1768638784402,2.40963957,144.19,144.11,6.2476]
[1768638784594,2.40963957,144.18,144.12,3.03015357]
[1768638793112,2.40963957,144.18,144.13,3.03015357]
[1768638802715,2.41212991,144.17,144.11,4.88724818]
[1768638802915,2.41212991,144.17,144.11,3.16279458]
[1768638803618,10.38168351,144.18,144.11,3.16279458]
[1768638803818,8.65722991,144.18,144.11,3.16279458]
[1768638804117,2.41212991,144.18,144.12,3.16279458]
[1768638804917,2.41212991,144.18,144.13,3.16279458]
[1768638818535,2.4112994,144.2,144.14,2.99304139]
[1768638818928,2.4112994,144.2,144.15,2.99304139]
[1768638826337,2.4112994,144.2,144.15,9.23924139]
[1768638841050,10.37928298,144.22,144.15,9.23924139]
[1768638848558,2.41061083,144.21,144.15,9.23924139]
[1768638858470,2.41061083,144.21,144.15,2.99304139]
[1768638859074,2.41061083,144.19,144.13,3.12891862]
[1768638859868,8.65521083,144.19,144.13,3.12891862]
[1768638873086,2.41061083,144.19,144.13,3.12891862]
[1768638874187,2.41061083,144.19,144.13,11.10099077]
[1768638874786,2.41061083,144.19,144.14,2.99019872]
[1768638874987,2.41175798,144.23,144.14,2.99019872]
[1768638875187,6.2438,144.21,144.15,2.99019872]
[1768638875589,4.13683013,144.22,144.15,2.99019872]
[1768638879991,2.41175798,144.22,144.16,6.2457]
[1768638880288,2.41175798,144.22,144.16,9.23589872]
[1768638883194,2.41175798,144.22,144.17,2.99019872]
[1768638895194,2.41135931,144.24,144.17,2.99019872]
[1768638896803,8.65375931,144.24,144.17,2.99019872]
[1768638908815,2.41135931,144.24,144.17,2.99019872]
[1768638909112,2.41135931,144.24,144.17,9.23539872]
[1768638915224,2.41135931,144.24,144.18,3.13401985]
[1768638919321,2.41135931,144.24,144.18,9.37891985]
[1768638919528,2.41135931,144.24,144.19,3.13401985]
[1768638924832,160.9876294,144.25,144.19,3.13401985]
[1768638925031,163.39795548,144.25,144.19,3.13401985]
[1768638937237,161.67312087,144.25,144.19,3.13401985]
[1768638937437,1.72483461,144.24,144.19,3.13401985]
[1768638945547,1.72441862,144.24,144.19,3.13401985]
[1768638956856,10.3774686,144.24,144.17,3.22295862]
[1768638957057,1.72441862,144.22,144.17,3.22295862]
[1768638968574,4.1348686,144.22,144.15,9.46905862]
[1768638969371,4.1348686,144.22,144.16,3.22295862]
[1768638971370,2.41044998,144.22,144.16,3.22295862]
[1768638973475,8.65374998,144.22,144.16,3.22295862]
[1768638974474,2.41044998,144.21,144.16,3.22295862]
[1768638985988,8.65414998,144.21,144.16,3.22295862]
[1768638987290,8.65414998,144.21,144.14,9.29234643]
[1768638987587,8.65414998,144.21,144.15,3.04574643]
[1768638991789,6.2443,144.2,144.15,3.04574643]
[1768639017803,2.41044998,144.21,144.15,3.04574643]